Cogmind - Beta 14 @@@ ROGUE MODE // 2024.11.10 @ 19:49:51 Player: MarKhan Result: Destroyed by D-53 Grenadier with Mini Grenade Launcher Performance ------------- Evolutions (0) 0 Regions Visited (2) 400 Robots Destroyed (14) 70 Value Destroyed (230) 230 Prototype IDs (0) 0 Alien Tech Used (0) 0 Bonus (0) 0 TOTAL SCORE: 700 Bonus ------- None Cogmind --------- Core Integrity 0/250 Matter 300/300 Energy 98/100 System Corruption 0% Temperature Cool (0) Movement Core (50) Location -10/Mines Parts ------- > --- POWER (1) -------- (None) > --- PROPULSION (2) --- (None) > --- UTILITY (2) ------ (None) > --- WEAPON (2) ------- (None) > --- INVENTORY (5) ---- Light Ion Engine Improved Terrain Scanner Seismic Detector Assault Rifle Assault Rifle Peak State ------------ > --- POWER ------------ (None) > --- PROPULSION ------- (None) > --- UTILITY ---------- Improved Terrain Scanner Seismic Detector > --- WEAPON ----------- Medium Laser Assault Rifle > --- INVENTORY -------- Light Ion Engine Assault Rifle [Rating: 6] Favorites ----------- Power None Propulsion None Utility Seismic Detector Device Seismic Detector Weapon Medium Laser Energy Gun Medium Laser Ballistic Gun Assault Rifle Build | -11 -10 -10 ------- Run | Yrd Mat Min Slots Evolved . | . . . Power . | . . . Propulsion . | . . . Utility . | . . . Weapon . | . . . Parts Attached 8 | 4 1 3 Power . | . . . Engine . | . . . Core . | . . . Reactor . | . . . Propulsion . | . . . Treads . | . . . Leg . | . . . Wheel . | . . . Hover . | . . . Flight . | . . . Utility 4 | 2 . 2 Device 4 | 2 . 2 Storage . | . . . Processor . | . . . Hackware . | . . . Protection . | . . . Artifact . | . . . Weapon 4 | 2 1 1 Energy Gun 1 | 1 . . Energy Cannon . | . . . Ballistic Gun 3 | 1 1 1 Ballistic Cannon . | . . . Launcher . | . . . Special Weapon . | . . . Impact Weapon . | . . . Slashing Weapon . | . . . Piercing Weapon . | . . . Special Melee Weapon . | . . . Unidentified Prototypes . | . . . Parts Lost 2 | . . 2 Power . | . . . Propulsion . | . . . Utility 1 | . . 1 Weapon 1 | . . 1 Highest Loss Streak 2 | . . 2 To Critical Strikes . | . . . Average Slot Usage (%) 30 | . 34 27 Device 9 | . 5 12 Energy Gun 14 | . 14 14 Ballistic Gun 6 | . 14 . Peak Build Rating 6 | 6 6 3 Average Rating 2 | 2 2 1 On Entrance 2 | . 6 2 Naked Turns . | . . . Heaviest Build 6 | 6 6 4 Greatest Support 3 | 3 3 3 Greatest Overweight (x) 1 | 1 1 1 Average Overweight (x) . | . 1 . Largest Inventory Capacity 5 | 5 5 5 Average Capacity 5 | 5 5 5 Most Carried 5 | 2 5 5 Average Carried 3 | 1 3 4 Final Capacity 5 | 5 5 5 Final Carried 5 | 2 4 5 Class Distribution -------------------- 100% | Mutant Dominant Class ---------------- Mutant | -10/Materials Mutant | -10/Mines Resources | -11 -10 -10 ----------- Run | Yrd Mat Min Matter Collected 367 | 273 39 55 Remotely . | . . . Salvage Created 409 | 172 220 17 Parts 26 | 12 14 . Haulers Intercepted . | . . . Recyclers Shooed 1 | 1 . . Parts Field Recycled . | . . . Retrieved Matter . | . . . Parts Self-Destructed . | . . . Prevented . | . . . Kills | -11 -10 -10 ------- Run | Yrd Mat Min Combat Hostiles Destroyed 8 | . 7 1 Guns 8 | . 7 1 Classes Destroyed 4 | 2 2 . Tunneler 5 | 5 . . Recycler 1 | 1 . . Swarmer 4 | . 3 1 Grunt 4 | . 4 . Best Kill Streak 6 | 6 4 1 Combat Bots Only 4 | . 4 1 Max Kills in Single Turn 1 | 1 1 1 Gunslinging . | . . . Exploded . | . . . Melee . | . . . Uniques/NPCs Destroyed . | . . . Combat | -11 -10 -10 -------- Run | Yrd Mat Min Hostile Shots Fired 49 | . 23 26 Missed 15 | . 5 10 Damage Taken 428 | . 180 248 Core 256 | . 47 209 Absorbed by Shields . | . . . Core Remaining (%) 100 | 100 . . Volleys Fired 34 | 11 18 5 Largest 2 | 2 2 1 Hottest 70 | 70 70 50 Shots Fired 63 | 22 36 5 Gun 63 | 22 36 5 Cannon . | . . . Launcher . | . . . Special . | . . . Kinetic 29 | 11 18 . Thermal 34 | 11 18 5 Explosive . | . . . Electromagnetic . | . . . Robot Hit Streak 10 | 10 5 1 Robot Miss Streak 4 | 2 3 4 Penetration Max . | . . . Secondary Targets . | . . . Shots Hit Robots 36 | 14 21 1 Core Hits 20 | 7 12 1 Critical Kills . | . . . Critical Parts Destroyed . | . . . Critical Strikes 3 | . 3 . Burn 3 | . 3 . Melee Attacks . | . . . Impact . | . . . Slashing . | . . . Piercing . | . . . Sneak Attacks . | . . . Combat Hostiles . | . . . Follow-up Attacks . | . . . Damage Inflicted 487 | 184 291 12 Guns 487 | 184 291 12 Cannons . | . . . Explosions . | . . . Melee . | . . . Ramming . | . . . Kinetic 210 | 81 129 . Thermal 277 | 103 162 12 Explosive . | . . . Electromagnetic . | . . . Impact . | . . . Slashing . | . . . Piercing . | . . . Highest Corruption . | . . . Average Corruption . | . . . Corruption Purged . | . . . Corruption Blocked . | . . . Overload Shots . | . . . Overflow Damage . | . . . Projectiles . | . . . Explosions . | . . . Melee . | . . . Knockbacks . | . . . Impact . | . . . Kinetic . | . . . Secondary . | . . . Self-Inflicted Damage . | . . . Shots . | . . . Rammed . | . . . Targets Rammed . | . . . Kicked . | . . . Crushed . | . . . Highest Temperature 35 | . 35 25 Average Temperature 12 | . 11 25 Received Heat Transfer 75 | . 75 . Siege Activations . | . . . Robots Corrupted . | . . . Combat Hostiles . | . . . Parts Fried . | . . . Impact Corruptions . | . . . Robots Melted . | . . . Combat Hostiles . | . . . Parts Melted 3 | . 3 . Heat Transferred 1036 | 296 703 37 Parts Sabotaged . | . . . Parts Stolen . | . . . Parts Stripped . | . . . Power Chain Reactions . | . . . Alert | -11 -10 -10 ------- Run | Yrd Mat Min Peak Influence 307 | 30 300 307 Initial 117 | . 19 117 Average 153 | 12 182 200 Maximum Alert Level 1 | . 1 1 Low Security (%) 56 | 100 45 42 Level 1 43 | . 54 57 Level 2 . | . . . Level 3 . | . . . Level 4 . | . . . Level 5 . | . . . High Security . | . . . Max Security . | . . . Squads Dispatched 2 | . 2 . Investigation . | . . . Extermination . | . . . Reinforcement 2 | . 2 . Assault . | . . . Garrison . | . . . Intercept . | . . . Searches Triggered . | . . . Construction Impeded . | . . . Haulers Reinforced . | . . . Active Scanning Responses . | . . . Cargo Convoy Interrupts . | . . . Stealth | -11 -10 -10 --------- Run | Yrd Mat Min Distress Signals 2 | . 2 . Communications Jammed . | . . . Distress Signals . | . . . Times Spotted 32 | . 15 17 Peak Tracking Total 12 | . 4 12 Tactical Retreats 8 | . 1 7 Traps | -11 -10 -10 ------- Run | Yrd Mat Min Traps Triggered . | . . . Indirectly . | . . . Trap Hack Attempts . | . . . Triggered . | . . . Disarmed . | . . . Reprogrammed . | . . . Reused 4 | . . 4 Traps Extracted . | . . . Installed 5 | . . 5 Triggered 3 | . . 3 Machines | -11 -10 -10 ---------- Run | Yrd Mat Min Machines Disabled . | . . . Max in Single Turn . | . . . Machines Repaired . | . . . Machines Dismantled . | . . . Machines Sabotaged . | . . . Overloaded Fab Kills . | . . . Hacking | -11 -10 -10 --------- Run | Yrd Mat Min Machines Accessed 1 | . 1 . Terminals 1 | . 1 . Fabricators . | . . . Repair Stations . | . . . Recycling Units . | . . . Scanalyzers . | . . . Garrison Access . | . . . Total Hacks 2 | . 2 . Successful . | . . . Failed 2 | . 2 . Catastrophic . | . . . Database Lockouts . | . . . Manual 2 | . 2 . Terminals 2 | . 2 . Fabricators . | . . . Repair Stations . | . . . Recycling Units . | . . . Scanalyzers . | . . . Garrison Access . | . . . Terminal Hacks . | . . . Fabricator Hacks . | . . . Repair Station Hacks . | . . . Recycling Unit Hacks . | . . . Scanalyzer . | . . . Garrison Access Hacks . | . . . Unauthorized Hacks . | . . . Terminals . | . . . Fabricators . | . . . Repair Stations . | . . . Recycling Units . | . . . Scanalyzers . | . . . Garrison Access . | . . . Data Cores Recovered . | . . . Used . | . . . Hacking Detections 1 | . 1 . Full Trace Events . | . . . Feedback Events . | . . . Feedback Blocked . | . . . Robot Schematics Acquired . | . . . Robots Built . | . . . Authchips . | . . . Time . | . . . Total Robot Build Rating . | . . . Part Schematics Acquired . | . . . Parts Built . | . . . Authchips . | . . . Time . | . . . Total Part Build Rating . | . . . Parts Repaired . | . . . Time . | . . . Parts Recycled . | . . . Recycled Matter . | . . . Retrieved Matter . | . . . Retrieved Components . | . . . Parts Scanalyzed . | . . . Part Schematics Acquired . | . . . Parts Damaged . | . . . Bothacking | -11 -10 -10 ------------ Run | Yrd Mat Min Used RIF Installer . | . . . Robots Hacked . | . . . Non-combat . | . . . Combat . | . . . Robot Hacks Applied . | . . . Relay Couplers Released . | . . . Fabnet Peak Effective % . | . . . Robots Rewired . | . . . Allies Hacked . | . . . Hacks Repelled . | . . . Allies | -11 -10 -10 -------- Run | Yrd Mat Min Total Allies . | . . . Largest Group . | . . . Highest-Rated Group . | . . . Highest-Rated Ally . | . . . Total Orders . | . . . Ally Attacks . | . . . Total Damage . | . . . Kills . | . . . Allies Corrupted . | . . . Allies Melted . | . . . Intel | -11 -10 -10 ------- Run | Yrd Mat Min Robot Analysis Total . | . . . Derelict Logs Recovered . | . . . Drone Launches . | . . . Drone Recoveries . | . . . Exploration | -11 -10 -10 ------------- Run | Yrd Mat Min Turns Passed 538 | 118 186 234 Spaces Moved 624 | 80 127 417 Core 624 | 80 127 417 Treads . | . . . Legs . | . . . Wheels . | . . . Hover . | . . . Flight . | . . . Fastest Speed 50 | 50 100 50 Average Speed 66 | 96 100 50 Slowest Speed 100 | 100 100 100 Overloaded Moves . | . . . Propulsion Burnouts . | . . . Robots Hopped . | . . . Cave-ins Triggered . | . . . Exploration Rate (%) 37 | 5 32 74 Regions Visited 2 Branch Regions 1 Pre-discovered Areas . | . . . Known Exits Taken . | . . . Unknown Exits Taken 2 | 1 1 . Scrap Searched 2 | . . 2 Spaces Dug . | . . . Terrain Destroyed . | . . . Melee . | . . . Projectile . | . . . AOE . | . . . Terrain Rammed . | . . . Walls Destroyed . | . . . Machines Disabled . | . . . Actions | -11 -10 -10 --------- Run | Yrd Mat Min Total 682 | 96 151 435 Wait 3 | . 3 . Move 622 | 79 126 417 Hop . | . . . Pick Up 4 | 2 . 2 Fast Attach 4 | 4 . . Attach 3 | . . 3 Detach 4 | . 2 2 Swap 1 | . 1 . Drop 2 | . 1 1 Fire 34 | 11 18 5 Melee . | . . . Ram . | . . . Kick . | . . . Crush . | . . . Escape Stasis . | . . . Rewire . | . . . Trap 5 | . . 5 Miscellaneous . | . . . Route ------- -11/Scrapyard -10/Materials -10/Mines (discovered 2 exits: [*Mat x2]) History --------- Turn | Location | Event 14 | -11/Scrapyard | Discovered new exit (range 16) 119 | -11/Scrapyard | Entered Materials 246 | -10/Materials | Discovered new exit (range 7) 303 | -10/Materials | Build established: Mutant 305 | -10/Materials | Entered Mines 326 | -10/Mines | Assembled infested the area 331 | -10/Mines | Assisted by a Guerilla fighting off Assembled 367 | -10/Mines | Found a hidden stash of uninstalled traps 390 | -10/Mines | Discovered new exit (range 12) 400 | -10/Mines | Discovered new exit (range 8) 534 | -10/Mines | Core integrity fell below 50% 538 | -10/Mines | Core integrity fell below 20% 539 | -10/Mines | Destroyed by D-53 Grenadier with Mini Grenade Launcher Last Messages --------------- 00414_ Dropped Assault Rifle. 00416_ Acquired Assault Rifle. 00416_ K-01 Serf collects debris. 00440_ Acquired 20 matter. 00449_ S-10 Pest destroyed. 00498_ K-01 Serf collects debris. 00521_ U-05 Engineer lays Concrete. 00521_ K-01 Serf collects debris. 00522_ U-05 Engineer lays Concrete. 00524_ K-01 Serf collects debris. 00525_ U-05 Engineer lays Concrete. 00526_ U-05 Engineer builds a Wall. 00526_ K-01 Serf collects debris. 00532_ U-05 Engineer builds a Wall. 00535_ K-01 Serf collects debris. 00535_ Med. Laser destroyed. 00535_ K-01 Serf destroyed. 00536_ U-05 Engineer lays Concrete. 00537_ D-53 Grenadier destroyed. 00539_ Seismic Detector destroyed. Map ----- +----------------------------------------------------+ | ??????????????????????????????????# #??# # | | ??????????????????????????????????# #### # #?? | | ??????????????????????????????????# #?? | | ??????????????????????????????????##### # ### | | ??????????????????????????????????????#### ## | | ??????????????????????????????#####??### ## # | | ?????????????????????????????## ?## | | ????????????????????????????## "?# | | ????????????????????????????# ?# | | ????????????????????????????# #?## | | ????????????????????????????# #??# | | ????????????????????????????# #??## ## | | ????????????????????????????# ##??### ## | | ?????????????????????????????# ##### ## | | ??????????????????????????????# ##???# | | ???????????????????????????????# #??## | | ??????????????????????????????## #### | | ??????????????????????????????# * s | | ??????????????????????????????# =% ## | | ????????????????????????????### ##### # # | | ??????????????????????????### #??###### # | | ???????????# ????????##### #??????## # | | ????????????# ????## #???????## %# | | ?????????????# ]### d ##????????# # | | ??????????????# *|%** u #????????#### | | ??????????????# =!!= @ #???????????? | | ??????????????# * ######???????????? | | ??????????????## #????????????????? | | ???????????????## # #????????????????? | | ????????????????## ###########????????????????? | | ?????????????????###???????????????????????????? | | ???????????????????????????????????????????????? | | ???????????????????????????????????????????????? | | ???????????????????????????????????????????????? | | | | | | | | | | | | | | | | | | | | | | | | | | | | | | | | | +----------------------------------------------------+ Best States ------------- Heat Dissipation 25 Energy Generation 5 Energy Capacity 100 Matter Stores 300 Matter Capacity 300 Sight Range 16 Terrain Scan Range 16 Terrain Scan Density 10 Evasion (%) 50 Item Schematics ----------------- None Robot Schematics ------------------ None Fabricated ------------ Nothing Alien Tech Used ----------------- None Achievements -------------- None Challenges ------------ None Game ------ Seed SchematicMetaSlayer Manual? 0 Play Time 00:09:00 Cumulative 83.4 hours Start 2024.11.10 @ 19:43:55 End 2024.11.10 @ 19:49:51 Sessions 1 Manual Loads 0 Difficulty Rogue Special Mode None Game No. 81 Rogue 81 Adventurer 0 Explorer 0 Win Type - Total 2 Types 2/0/0/0/0/0/0/0/0 Lore% 47 Gallery% 48 Achievement% 41 Wizard Run 0 Options --------- Layout 1 ASCII 0 Keyboard 1 Movement Arrows Keybinds 0 Fullscreen 2 Font 24/Smallcaps Map View 50x35 Zoom Use 0% Tactical HUD 1 Map Filters NONE Filters NONE Steam 1 RUN: 3cfb0492-e1ea-432c-8eea-8d879bf4e879